Cogmind - Beta 13 @@@ ROGUE MODE // 2024.04.07 @ 19:03:11 Player: Aklangi Result: Destroyed by G-34 Mercenary with Small Laser Performance ------------- Evolutions (0) 0 Regions Visited (1) 200 Robots Destroyed (13) 65 Value Destroyed (310) 310 Prototype IDs (0) 0 Alien Tech Used (0) 0 Bonus (0) 0 TOTAL SCORE: 575 Bonus ------- None Cogmind --------- Core Integrity 0/250 Matter 290/300 Energy 230/250 System Corruption 8% Temperature Cool (31) Movement Walking (120) Location -10/Materials Parts ------- > --- POWER (1) -------- Ion Engine > --- PROPULSION (2) --- Aluminum Leg Aluminum Leg > --- UTILITY (2) ------ Small Storage Unit > --- WEAPON (2) ------- Mining Laser > --- INVENTORY (8) ---- Ion Engine Aluminum Leg Large Storage Unit Transport Network Coupler Peak State ------------ > --- POWER ------------ Light Nuclear Core > --- PROPULSION ------- Aluminum Leg Aluminum Leg > --- UTILITY ---------- Small Storage Unit Improved Terrain Scanner > --- WEAPON ----------- Light Assault Rifle Light Assault Rifle > --- INVENTORY -------- Ion Engine Ion Engine Aluminum Leg Aluminum Leg Large Storage Unit Grenade Launcher Mining Laser [Rating: 11] Favorites ----------- Power Ion Engine Engine Ion Engine Power Core Light Nuclear Core Propulsion Aluminum Leg Leg Aluminum Leg Utility Small Storage Unit Device Improved Terrain Scanner Storage Small Storage Unit Weapon Light Assault Rifle Ballistic Gun Light Assault Rifle Launcher Grenade Launcher Special Weapon Mining Laser Build | -11 -10 ------- Run | Yrd Mat Slots Evolved . | . . Power . | . . Propulsion . | . . Utility . | . . Weapon . | . . Parts Attached 18 | 8 10 Power 3 | 1 2 Engine 2 | 1 1 Core 1 | . 1 Reactor . | . . Propulsion 7 | 2 5 Treads . | . . Leg 7 | 2 5 Wheel . | . . Hover . | . . Flight . | . . Utility 3 | 3 . Device 2 | 2 . Storage 1 | 1 . Processor . | . . Hackware . | . . Protection . | . . Artifact . | . . Weapon 5 | 2 3 Energy Gun . | . . Energy Cannon . | . . Ballistic Gun 2 | 2 . Ballistic Cannon . | . . Launcher 1 | . 1 Special Weapon 2 | . 2 Impact Weapon . | . . Slashing Weapon . | . . Piercing Weapon . | . . Special Melee Weapon . | . . Unidentified Prototypes . | . . Parts Lost 8 | . 8 Power 1 | . 1 Propulsion 2 | . 2 Utility 1 | . 1 Weapon 4 | . 4 Highest Loss Streak 8 | . 8 To Critical Strikes . | . . Average Slot Usage (%) 91 | . 91 Engine 12 | . 12 Core 1 | . 1 Leg 25 | . 25 Device 11 | . 11 Storage 14 | . 14 Ballistic Gun 23 | . 23 Special Weapon 1 | . 1 Naked Turns . | . . Heaviest Build 13 | 13 13 Greatest Support 20 | 20 20 Greatest Overweight (x) 2 | 2 2 Average Overweight (x) . | . . Largest Inventory Capacity 8 | 8 8 Average Capacity 7 | 7 8 Most Carried 8 | 1 8 Average Carried 1 | . 3 Final Capacity 8 | 8 8 Final Carried 4 | 1 4 Class Distribution -------------------- 100% | Mutant Dominant Class ---------------- Mutant | -10/Materials Resources | -11 -10 ----------- Run | Yrd Mat Matter Collected 510 | 314 196 Remotely . | . . Salvage Created 577 | 59 518 Parts 28 | 3 25 Haulers Intercepted 2 | . 2 Recyclers Shooed . | . . Parts Field Recycled . | . . Retrieved Matter . | . . Parts Self-Destructed . | . . Prevented . | . . Kills | -11 -10 ------- Run | Yrd Mat Combat Hostiles Destroyed 10 | 3 7 Guns 9 | 3 6 AOE 1 | . 1 Classes Destroyed 6 | 2 4 Tunneler 1 | 1 . Hauler 2 | . 2 Recycler 2 | . 2 Mechanic 1 | . 1 Grunt 7 | . 7 Assembled 3 | 3 . Best Kill Streak 5 | 2 5 Combat Bots Only 3 | 2 3 Max Kills in Single Turn 3 | 1 3 Gunslinging . | . . Exploded 1 | . 1 Melee . | . . Uniques/NPCs Destroyed . | . . Combat | -11 -10 -------- Run | Yrd Mat Hostile Shots Fired 73 | 10 63 Missed 13 | 1 12 Damage Taken 1050 | 173 877 Core 255 | 83 172 Absorbed by Shields . | . . Regen/Repaired (Parts) 39 | . 39 Core Remaining (%) 66 | 66 . Volleys Fired 79 | 17 62 Largest 2 | 2 2 Hottest 120 | 40 120 Shots Fired 157 | 34 123 Gun 150 | 34 116 Cannon . | . . Launcher 3 | . 3 Special 4 | . 4 Kinetic 150 | 34 116 Thermal 4 | . 4 Explosive 3 | . 3 Electromagnetic . | . . Robot Hit Streak 7 | 3 7 Robot Miss Streak 10 | 3 10 Penetration Max . | . . Secondary Targets . | . . Shots Hit Robots 77 | 15 62 Core Hits 39 | 9 30 Critical Kills 1 | . 1 Critical Parts Destroyed . | . . Critical Strikes 1 | . 1 Destroy 1 | . 1 Melee Attacks . | . . Impact . | . . Slashing . | . . Piercing . | . . Sneak Attacks . | . . Combat Hostiles . | . . Follow-up Attacks . | . . Damage Inflicted 923 | 119 804 Guns 629 | 119 510 Cannons . | . . Explosions 270 | . 270 Melee . | . . Ramming . | . . Kinetic 629 | 119 510 Thermal 24 | . 24 Explosive 270 | . 270 Electromagnetic . | . . Impact . | . . Slashing . | . . Piercing . | . . Highest Corruption 8 | . 8 Average Corruption 8 | . 8 Corruption Purged . | . . Corruption Blocked . | . . Effects 2 | . 2 Heat Flow Errors 1 | . 1 Data Loss (major) 1 | . 1 Overload Shots . | . . Overflow Damage . | . . Projectiles . | . . Explosions . | . . Melee . | . . Knockbacks . | . . Impact . | . . Kinetic . | . . Secondary . | . . Self-Inflicted Damage 90 | . 90 Shots 3 | . 3 Rammed . | . . Targets Rammed . | . . Kicked . | . . Crushed . | . . Highest Temperature 227 | 20 227 Average Temperature 62 | 20 66 Received Heat Transfer 458 | 80 378 Siege Activations . | . . Robots Corrupted . | . . Combat Hostiles . | . . Parts Fried . | . . Impact Corruptions . | . . Robots Melted . | . . Combat Hostiles . | . . Parts Melted . | . . Heat Transferred 50 | . 50 Parts Sabotaged . | . . Parts Stolen . | . . Parts Stripped . | . . Power Chain Reactions . | . . Alert | -11 -10 ------- Run | Yrd Mat Peak Influence 219 | 5 219 Initial . | . . Average 10 | . 69 Maximum Alert Level 1 | . 1 Low Security (%) 99 | 100 96 Level 1 . | . 3 Level 2 . | . . Level 3 . | . . Level 4 . | . . Level 5 . | . . High Security . | . . Max Security . | . . Squads Dispatched 1 | . 1 Investigation 1 | . 1 Extermination . | . . Reinforcement . | . . Assault . | . . Garrison . | . . Intercept . | . . Searches Triggered . | . . Construction Impeded . | . . Haulers Reinforced . | . . Active Scanning Responses . | . . Cargo Convoy Interrupts . | . . Stealth | -11 -10 --------- Run | Yrd Mat Distress Signals 2 | . 2 Communications Jammed . | . . Distress Signals . | . . Times Spotted 20 | 4 16 Peak Tracking Total 5 | 2 5 Tactical Retreats . | . . Traps | -11 -10 ------- Run | Yrd Mat Traps Triggered . | . . Indirectly . | . . Trap Hack Attempts . | . . Triggered . | . . Disarmed . | . . Reprogrammed . | . . Reused . | . . Traps Extracted . | . . Installed . | . . Triggered . | . . Machines | -11 -10 ---------- Run | Yrd Mat Machines Disabled 1 | . 1 Max in Single Turn 1 | . 1 Machines Repaired . | . . Machines Dismantled . | . . Machines Sabotaged . | . . Overloaded Fab Kills . | . . Hacking | -11 -10 --------- Run | Yrd Mat Machines Accessed 1 | . 1 Terminals . | . . Fabricators . | . . Repair Stations 1 | . 1 Recycling Units . | . . Scanalyzers . | . . Garrison Access . | . . Total Hacks 3 | . 3 Successful 2 | . 2 Failed 1 | . 1 Catastrophic . | . . Database Lockouts . | . . Manual . | . . Terminals . | . . Fabricators . | . . Repair Stations 3 | . 3 Recycling Units . | . . Scanalyzers . | . . Garrison Access . | . . Terminal Hacks . | . . Fabricator Hacks . | . . Repair Station Hacks 2 | . 2 Scan Component 1 | . 1 Repair 1 | . 1 Recycling Unit Hacks . | . . Scanalyzer . | . . Garrison Access Hacks . | . . Unauthorized Hacks . | . . Terminals . | . . Fabricators . | . . Repair Stations . | . . Recycling Units . | . . Scanalyzers . | . . Garrison Access . | . . Data Cores Recovered . | . . Used . | . . Hacking Detections 1 | . 1 Full Trace Events 1 | . 1 Feedback Events . | . . Feedback Blocked . | . . Robot Schematics Acquired . | . . Robots Built . | . . Authchips . | . . Time . | . . Total Robot Build Rating . | . . Part Schematics Acquired . | . . Parts Built . | . . Authchips . | . . Time . | . . Total Part Build Rating . | . . Parts Repaired 1 | . 1 Time 26 | . 26 Parts Recycled . | . . Recycled Matter . | . . Retrieved Matter . | . . Retrieved Components . | . . Parts Scanalyzed . | . . Part Schematics Acquired . | . . Parts Damaged . | . . Bothacking | -11 -10 ------------ Run | Yrd Mat Used RIF Installer . | . . Robots Hacked . | . . Non-combat . | . . Combat . | . . Robot Hacks Applied . | . . Relay Couplers Released . | . . Fabnet Peak Effective % . | . . Robots Rewired . | . . Allies Hacked . | . . Hacks Repelled . | . . Allies | -11 -10 -------- Run | Yrd Mat Total Allies . | . . Largest Group . | . . Highest-Rated Group . | . . Highest-Rated Ally . | . . Total Orders . | . . Ally Attacks . | . . Total Damage . | . . Kills . | . . Allies Corrupted . | . . Allies Melted . | . . Intel | -11 -10 ------- Run | Yrd Mat Robot Analysis Total . | . . Derelict Logs Recovered . | . . Drone Launches . | . . Drone Recoveries . | . . Exploration | -11 -10 ------------- Run | Yrd Mat Turns Passed 3186 | 2747 439 Spaces Moved 2387 | 2215 172 Core 15 | 12 3 Treads . | . . Legs 2372 | 2203 169 Wheels . | . . Hover . | . . Flight . | . . Fastest Speed 50 | 50 100 Average Speed 119 | 119 119 Slowest Speed 150 | 150 150 Overloaded Moves . | . . Propulsion Burnouts . | . . Robots Hopped . | . . Cave-ins Triggered 1 | . 1 Exploration Rate (%) 68 | 95 41 Regions Visited 1 Branch Regions . Pre-discovered Areas . | . . Known Exits Taken . | . . Unknown Exits Taken 1 | 1 . Scrap Searched . | . . Spaces Dug . | . . Terrain Destroyed 19 | . 19 Melee . | . . Projectile 3 | . 3 AOE 16 | . 16 Terrain Rammed . | . . Walls Destroyed . | . . Machines Disabled . | . . Actions | -11 -10 --------- Run | Yrd Mat Total 2572 | 2277 295 Wait 84 | 37 47 Move 2386 | 2214 172 Hop . | . . Pick Up 5 | 1 4 Fast Attach 11 | 8 3 Attach 4 | . 4 Detach . | . . Swap 3 | . 3 Drop . | . . Fire 79 | 17 62 Melee . | . . Ram . | . . Kick . | . . Crush . | . . Escape Stasis . | . . Rewire . | . . Trap . | . . Miscellaneous . | . . Route ------- -11/Scrapyard -10/Materials (discovered 1 exit: [*Min]) History --------- Turn | Location | Event 8 | -11/Scrapyard | Discovered new exit (range 16) 2505 | -11/Scrapyard | Assembled infested the area 2748 | -11/Scrapyard | Entered Materials 2749 | -10/Materials | Build established: Mutant 2814 | -10/Materials | Discovered new exit (range 16) 2852 | -10/Materials | Repaired Aluminum Leg 3075 | -10/Materials | Core integrity fell below 50% 3134 | -10/Materials | Core integrity fell below 20% 3135 | -10/Materials | Crushed by falling debris 3166 | -10/Materials | Lost 8 parts (1p2n1u4w) 3187 | -10/Materials | Destroyed by G-34 Mercenary with Small Laser Last Messages --------------- 03143_ U-05 Engineer lays Concrete. 03143_ K-01 Serf collects debris. 03144_ Acquired 1 matter. 03144_ U-05 Engineer lays Concrete. 03145_ U-05 Engineer builds a Wall. 03146_ System corrupted: Heat flow error (+154). 03146_ K-01 Serf collects debris. 03148_ Acquired 9 matter. 03149_ U-05 Engineer builds a Door. 03151_ U-05 Engineer builds a Wall. 03151_ K-01 Serf collects debris. 03158_ Acquired Mining Laser. 03163_ W-16 Scout sends out distress signal. 03165_ U-05 Engineer lays Concrete. 03166_ U-05 Engineer builds a Wall. 03167_ K-01 Serf cleans the Nuclear Reactor. 03167_ U-05 Engineer lays Concrete. 03173_ U-05 Engineer builds a Wall. 03174_ System corrupted: Substantial component data lost. 03174_ U-05 Engineer lays Concrete. Map ----- +----------------------------------------------------+ | ?????????????????????????????????????????????????? | | ?????????????????????????????????????????????????? | | ?????????????????????????????????????????????????? | | ?????????????????????????????????????????????????? | | ?????????????????????????????????????????????????? | | ?????????????????????????????????????????????????? | | ?????????????????????????????????????????????????? | | ?????????????????????????????????????????????????? | | ?????????????????????????????????????????????????? | | ?????????????????????????????????????????????????? | | ?????????????????????????????????????????????????? | | ?????????????????????????????????????????????????? | | ?????????????????????????????????????????????????? | | ?????????????????????????????????????????????????? | | #????????????????????????????????????????????????? | | ????#????#???????????????????????????????????????? | | ???????##??#????????#??#?????????? ??????????????? | | ?????##?#????#???##########??????# ??????????????? | | ?????????????#?#?# #??????# ??????????????? | | ???????########### #???#?## ???? ?????????? | | ???????# # #?#????# ????????#?????? | | ######## # #???#??# ???"" ???????? | | # # === # #??#???# #??? ????????? | | # """" # === # " ######## ####+########?? | | # """" # === # T # ??? | | # """" # # " @;g ^ ?? | | # # ! # g """"" ??? | | # =%[# ########## """"" " #???? | | #####+###+#####+## ## """"" T #???? | | % = " #???? | | < = #???? | | % =k = #???? | | #####+#########+## ### !%!+##= #???? | | #?# ### # "!" " ## ! ! ## ### #? ?? | | #?# ### #""!"|""## "" %## #?????#???? | | ###""" ### ########## "Y !## #?????????? | | #?#"R #?# #?????? ?# * ! + #?#???????? | | #?#""" #?#!!! #? ?? ???# ! # #?????????? | | #?# #?#!|! ## ??????# #???? ????? | | ??########?#!! #????????#! ## #?????????? | | ???#???????# #???? "??# """ #? ##????????? | | ??#????????# """ #????? ??# """ +? #?????????? | | ??????#????# """ #? ? ????# """ #? #?????????? | | ???????????# """ #????????# #? #?????????? | | ???????????# #????????#########? #?????????? | | #????#?????#######? ???????#???????? #?????????? | | ??#???????????????????????????#??#?? +?????????? | | ?????#????????? ????????? ?????????????#?????????? | | ?????#??????? ???????????? ?????????????????????? | | ???????????#???????????? ????????????????????????? | +----------------------------------------------------+ Best States ------------- Heat Dissipation 25 Energy Generation 14 Energy Capacity 250 Matter Stores 300 Matter Capacity 300 Sight Range 16 Terrain Scan Range 16 Terrain Scan Density 10 Evasion (%) 55 Item Schematics ----------------- None Robot Schematics ------------------ None Fabricated ------------ Nothing Alien Tech Used ----------------- None Achievements -------------- Curiosity Killed The Cat Challenges ------------ None Game ------ Seed StealthSignalLeg Manual? 0 Play Time 00:15:11 Cumulative 15.3 hours Start 2024.04.07 @ 18:51:39 End 2024.04.07 @ 19:03:11 Sessions 1 Manual Loads 0 Difficulty Rogue Special Mode None Game No. 29 Rogue 29 Adventurer 0 Explorer 0 Win Type - Total 1 Types 1/0/0/0/0/0/0/0/0 Lore% 22 Gallery% 30 Achievement% 31 Wizard Run 0 Options --------- Layout 0 ASCII 0 Keyboard 0 Movement Mouse Keybinds 0 Fullscreen 1 Font 18/SmallcapsGlow Map View 76x50 Zoom Use 8% Tactical HUD 1 Map Filters NONE Filters NONE Steam 1 RUN: 61ac7a97-b20d-46f6-8527-34b821fa1671